[Event "Teplice Open 2022"]
[Site "Teplice"]
[Date "2022.06.20"]
[Round "3.15"]
[White "Iniyan, P."]
[Black "Hoefelsauer, Thomas"]
[Result "1-0"]
[ECO "D15"]
[WhiteElo "2518"]
[BlackElo "2334"]
[Annotator "TA"]
[PlyCount "85"]
[EventDate "2022.06.18"]
[EventType "swiss"]
[EventCountry "CZE"]
[SourceTitle "playchess.com"]
[Source "ChessBase"]
[SourceQuality "1"]
[TimeControl "40/5400+30:1800+30"]

{[%evp 14,85,16,-4,-4,-4,0,-1,42,-25,-8,-25,0,0,0,0,0,0,0,0,12,12,143,0,5,8,173,152,172,108,121,97,266,264,264,268,264,264,305,298,281,294,310,309,286,247,29987,29988,5293,431,459,458,457,450,439,449,535,535,531,526,524,524,513,513,483,454,510,511,488,456,670,667,652,549]} 1. d4 {[%emt 0:07:53]} d5 {[%emt 0:00:02]} 2. c4 {[%emt 0:00:10]} c6 {[%emt 0:00:03]} 3. Nf3 {[%emt 0:00:07]} Nf6 {[%emt 0:00:07]} 4. Nc3 {[%emt 0:00:05]} a6 {[%emt 0:00:06]} 5. g3 {[%emt 0:00:04]} dxc4 {[%emt 0:00:44]} 6. a4 {[%emt 0:00:06]} e6 {[%emt 0:00:14]} 7. Bg2 {[%emt 0:00:05]} c5 {[%emt 0:00:13]} 8. O-O {[%emt 0:00:06]} (8. Bf4 {feels hotter.} Nd5 9. dxc5 Bxc5 10. Ne5) 8... cxd4 {[%emt 0:01:14] D15: Slav Defence: 4 Nc3 a6 and gambit lines after 4 Nc3 dxc4.} 9. Nxd4 {[%emt 0:00:10]} Be7 {[%emt 0:01:01]} 10. Nc2 {[%emt 0:00:47] [#]} Qc7 $146 {[%emt 0:06:15] The position is equal.} ({Predecessor:} 10... Nc6 11. Qxd8+ Bxd8 12. Bxc6+ bxc6 13. Ne3 a5 14. Nxc4 Ba6 15. b3 Be7 16. Ne5 Nd5 17. Bb2 f6 18. Nxd5 cxd5 19. Nc6 Kd7 20. Nxe7 Kxe7 21. Rfc1 Rhc8 22. Kf1 Kd7 23. Rc3 {½-½ (23) Gupta,A (2617)-Kulaots,K (2578) Budapest 2018}) 11. Na3 {[%emt 0:00:20]} (11. Bf4 $14 Qc5 12. Qd4) 11... O-O $11 {[%emt 0:02:20]} 12. Qd4 {[%emt 0:00:05]} Bxa3 {[%emt 0:05:15]} 13. Rxa3 {[%emt 0:00:05]} e5 {[%emt 0:01:22] Against Bf4} 14. Qh4 {[%emt 0:00:06]} Be6 {[%emt 0:02:41]} 15. f4 {[%emt 0:04:44]} exf4 {[%emt 0:09:57]} 16. gxf4 {[%emt 0:00:55] Strongly threatening f5.} Qc5+ {[%emt 0:09:29]} 17. Kh1 {[%emt 0:01:02][%mdl 1024] Black must now prevent f5. White has compensation.} Nc6 {[%emt 0:04:20]} (17... Bd7 $1 $11) 18. e4 {[%emt 0:06:40]} (18. f5 $1 $16) 18... Qh5 {[%emt 0:08:11]} 19. Qg3 {[%emt 0:00:06] And now f5 would win.} Nd4 {[%emt 0:08:35] [#]} (19... Bg4 $11) 20. f5 $1 $18 {[%emt 0:08:50]} Bd7 {[%emt 0:02:56]} 21. Be3 {[%emt 0:15:03]} ({Better is} 21. Rd1 $18 Nxe4 22. Bxe4 Nxf5 23. Qf2) 21... Nc2 $16 {[%emt 0:10:28]} 22. Bd2 {[%emt 0:00:09]} (22. Bf3 $6 Nxe3 23. Bxh5 Nxf1 $11) 22... Bc6 $2 {[%emt 0:05:17]} (22... Nd4 $16 {was worth a try.}) 23. Bf3 $18 {[%emt 0:07:12]} Nxe4 {[%emt 0:01:08]} 24. Nxe4 {[%emt 0:00:04] Chess con chili.} (24. Bxh5 $2 Nxg3+ 25. Kg1 Nxh5 $19) 24... Bxe4 {[%emt 0:03:11]} 25. Bxe4 {[%emt 0:00:06]} Qe2 {[%emt 0:01:17] [#]} 26. Qf4 {[%emt 0:02:21] Hoping for Rg3.} Nxa3 {[%emt 0:00:26] [#]} 27. Re1 $1 {[%emt 0:00:47]} Qh5 {[%emt 0:00:52][%cal Oa8d8]} 28. Bf3 {[%emt 0:06:50]} (28. bxa3 $6 Rad8 29. Bxb7 Rfe8 $18) 28... Qh3 {[%emt 0:00:36][%cal Oa8d8]} 29. Rg1 {[%emt 0:00:23]} (29. bxa3 Rad8 30. Ba5 (30. Bxb7 Qb3 $11) 30... Rfe8 $16) 29... g6 {[%emt 0:03:46]} (29... Nb1 $18) 30. fxg6 {[%emt 0:02:16]} hxg6 {[%emt 0:00:28]} 31. Bc3 {[%emt 0:01:28]} (31. Qf6 $142 {White wants to mate with Rxg6+.} Qxf3+ 32. Qxf3) 31... Rad8 {[%emt 0:02:02][%cal Od8d3]} (31... Nc2 $2 32. Qf6 Qxf3+ 33. Qxf3) 32. Qf6 {[%emt 0:00:30][%csl Gc3][%cal Rf6g7]} ({Worse is} 32. bxa3 Rd3 33. Bg2 Qe3 34. Qxe3 Rxe3 $14) 32... Qh6 {[%emt 0:00:34] Prevents Qg7+.} 33. Be4 {[%emt 0:01:48][%cal Re4g6] Prevents Rd3. A strong pair of Bishops.} ({Not} 33. bxa3 Rd7 34. Be4 Kh7 $18) 33... Kh7 {[%emt 0:00:32]} (33... Rde8 {gets mated.} 34. Bxg6) 34. bxa3 {[%emt 0:01:34]} Rd7 {[%emt 0:01:04]} 35. Rg4 {[%emt 0:02:48]} Rd1+ {[%emt 0:02:01]} 36. Kg2 {[%emt 0:00:07][%cal Bh1g2,Bg2h3,Bh3h4][%mdl 32] Intending Rh4 and mate.} Rd2+ {[%emt 0:00:06]} 37. Bxd2 {[%emt 0:00:21]} Qxd2+ {[%emt 0:00:05]} 38. Kh3 {[%emt 0:00:08][%cal Re4g6] Threatening mate with Bxg6+!} Qe3+ {[%emt 0:00:12]} 39. Bf3 {[%emt 0:00:07] Threatens to win with Rh4+.} Qe6 {[%emt 0:00:13]} 40. Qxe6 {[%emt 0:00:07]} fxe6 {[%emt 0:00:05]} 41. Bxb7 {[%emt 0:30:07]} Rb8 {[%emt 0:31:01]} (41... c3 $142 42. Rc4 a5 43. Rxc3 Rf4) 42. Bxa6 {[%emt 0:00:07]} Rb3+ {[%emt 0:00:06]} 43. Kh4 {[%emt 0:00:39] Weighted Error Value: White=0.27 (precise) /Black=0.56} 1-0

[Event "Teplice Open 2022"]
[Site "Teplice"]
[Date "2022.06.20"]
[Round "3.16"]
[White "Shohat, Yotam"]
[Black "Budisavljevic, Luka"]
[Result "1/2-1/2"]
[ECO "B30"]
[WhiteElo "2331"]
[BlackElo "2507"]
[Annotator "TA"]
[PlyCount "290"]
[EventDate "2022.06.18"]
[EventType "swiss"]
[EventCountry "CZE"]
[SourceTitle "playchess.com"]
[Source "ChessBase"]
[SourceQuality "1"]
[TimeControl "40/5400+30:1800+30"]

{[%evp 103,290,47,34,34,45,52,27,11,11,0,0,0,53,52,88,0,0,0,0,0,8,0,0,0,33,33,45,45,72,0,0,0,0,0,0,0,0,0,0,0,0,0,0,0,0,0,0,0,0,0,0,0,0,0,0,0,0,-8,0,0,0,0,0,0,0,0,0,0,0,0,0,0,0,0,0,0,0,0,0,0,0,0,0,0,0,0,0,0,0,-8,0,-8,0,0,0,0,0,0,0,0,0,0,0,0,0,0,0,0,0,0,0,0,0,0,0,0,0,0,0,0,0,0,0,0,0,0,0,0,0,0,0,0,0,0,0,0,0,0,0,0,0,0,0,0,0,0,0,0,0,0,0,0,0,0,0,0,0,0,0,0,0,0,0,0,0,0,0,0,0,0,0,0,0,0,0,0,0,0,0,0,0,0,0,0,0,0,0,0,0]} 1. e4 {[%emt 0:01:40]} c5 {[%emt 0:00:09]} 2. Nf3 {[%emt 0:00:06]} e6 {[%emt 0:00:25]} 3. g3 {[%emt 0:00:06]} Nc6 {[%emt 0:00:26]} 4. Bg2 {[%emt 0:00:06]} Nf6 {[%emt 0:00:53]} 5. d3 {[%emt 0:00:05]} d6 {[%emt 0:00:40]} 6. O-O {[%emt 0:00:07]} Be7 {[%emt 0:00:02]} 7. Re1 {[%emt 0:00:09]} O-O {[%emt 0:00:08]} 8. c3 {[%emt 0:00:02]} Bd7 {[%emt 0:08:35]} 9. d4 {[%emt 0:04:06]} d5 {[%emt 0:07:23]} 10. exd5 {[%emt 0:00:59]} exd5 {[%emt 0:01:12]} 11. Ne5 {[%emt 0:01:07]} Bf5 {[%emt 0:11:52]} 12. Bf4 {[%emt 0:08:12]} Be4 {[%emt 0:06:18]} 13. Nd2 {[%emt 0:12:30]} Bxg2 {[%emt 0:08:53]} 14. Kxg2 {[%emt 0:00:05]} cxd4 {[%emt 0:05:57]} 15. Nxc6 {[%emt 0:00:07]} bxc6 {[%emt 0:00:02]} 16. cxd4 {[%emt 0:00:06]} Bb4 {[%emt 0:05:26]} 17. Rc1 {[%emt 0:06:16]} Qb6 {[%emt 0:02:06]} 18. Be5 {[%emt 0:11:29]} Nd7 {[%emt 0:16:46]} 19. Bf4 {[%emt 0:18:14]} Qxd4 {[%emt 0:04:52]} 20. a3 {[%emt 0:00:05]} Bxd2 {[%emt 0:01:13]} 21. Qxd2 {[%emt 0:00:03]} Qxd2 {[%emt 0:03:20]} 22. Bxd2 {[%emt 0:01:32]} Rfc8 {[%emt 0:00:37]} 23. Re7 {[%emt 0:00:09]} Nb6 {[%emt 0:01:18]} 24. b3 {[%emt 0:05:14]} d4 {[%emt 0:07:13]} 25. a4 {[%emt 0:00:12]} f6 {[%emt 0:00:40]} 26. Rc5 {[%emt 0:01:56]} Kf8 {[%emt 0:02:54]} 27. Re6 {[%emt 0:03:55]} Nd7 {[%emt 0:00:29]} 28. Rcxc6 {[%emt 0:02:01]} Ne5 {[%emt 0:00:06]} 29. Rcd6 {[%emt 0:17:45]} Kf7 {[%emt 0:00:04]} 30. Bf4 {[%emt 0:00:09]} Nd3 {[%emt 0:00:53]} 31. Re4 {[%emt 0:01:09]} Rc2 {[%emt 0:00:49]} 32. Rd7+ {[%emt 0:02:29]} Kg6 {[%emt 0:00:15]} 33. Rexd4 {[%emt 0:00:09]} Nxf2 {[%emt 0:01:43]} 34. Bd2 {[%emt 0:02:30]} Nd1 {[%emt 0:00:22]} 35. Kf3 {[%emt 0:00:30]} h5 {[%emt 0:02:04]} 36. g4 {[%emt 0:01:37]} h4 {[%emt 0:00:26]} 37. Ke2 {[%emt 0:00:37]} Nb2 {[%emt 0:00:39]} 38. Re4 {[%emt 0:00:07]} a6 {[%emt 0:01:10]} 39. Ree7 {[%emt 0:00:28]} Rg8 {[%emt 0:00:01]} 40. h3 {[%emt 0:00:44]} Kh7 {[%emt 0:00:49]} 41. Re6 {[%emt 0:09:01]} Rb8 {[%emt 0:01:07]} 42. Ree7 {[%emt 0:08:58]} Rxb3 {[%emt 0:10:48]} 43. Rxg7+ {[%emt 0:00:14]} Kh8 {[%emt 0:00:01]} 44. Rge7 {[%emt 0:06:17]} Rb8 {[%emt 0:00:02]} 45. Kf3 {[%emt 0:01:22]} Nc4 {[%emt 0:00:10]} 46. Bf4 {[%emt 0:00:20]} Rb3+ {[%emt 0:07:26]} 47. Ke4 {[%emt 0:00:20]} Re2+ {[%emt 0:00:04]} 48. Kf5 {[%emt 0:00:20]} Rxe7 {[%emt 0:00:03]} 49. Rxe7 {[%emt 0:00:06]} Kg8 {[%emt 0:01:21]} 50. Kg6 {[%emt 0:01:50]} Kf8 {[%emt 0:00:04]} 51. Rc7 {[%emt 0:01:11]} Ne3 {[%emt 0:00:50]} 52. Ra7 $2 {[%emt 0:03:18]} ({White should try} 52. Rf7+ $18 Ke8 53. Rxf6) 52... Nd5 $14 {[%emt 0:00:53]} 53. Bd6+ {[%emt 0:00:07]} Ke8 {[%emt 0:00:02]} 54. Kf5 {[%emt 0:00:30]} Rb6 $1 {[%emt 0:02:29]} 55. Bc5 {[%emt 0:00:52]} Rc6 $1 {[%emt 0:00:03]} 56. Bd4 {[%emt 0:01:17]} Ne7+ {[%emt 0:00:26]} 57. Ke4 {[%emt 0:00:42]} Kf7 {[%emt 0:09:48]} (57... Rc4 $1 $11 58. Rxa6 Nc6) 58. Rb7 $14 {[%emt 0:00:27]} Ke6 {[%emt 0:00:57] [#]} 59. a5 {[%emt 0:01:38]} (59. Rb6 $1 $16 {[%cal Rb6c6]}) 59... f5+ $11 {[%emt 0:01:16]} 60. Kf3 {[%emt 0:01:27]} fxg4+ {[%emt 0:00:49]} 61. hxg4 {[%emt 0:00:10]} Rc4 {[%emt 0:00:21]} 62. Bf2 {[%emt 0:00:31]} h3 {[%emt 0:01:31]} 63. Rb6+ {[%emt 0:01:18]} Nc6 {[%emt 0:00:01]} 64. Kg3 {[%emt 0:00:28]} Rc3+ {[%emt 0:00:11]} 65. Kh2 {[%emt 0:00:08]} Kd5 {[%emt 0:01:48]} 66. Rxa6 {[%emt 0:00:54]} (66. Bg3 $16) 66... Rc2 $11 {[%emt 0:01:01]} 67. Kxh3 {[%emt 0:00:14]} Rxf2 {[%emt 0:00:03]} 68. Ra8 {[%emt 0:00:16]} Ra2 {[%emt 0:00:59]} 69. a6 {[%emt 0:00:06]} Ke6 {[%emt 0:00:27]} 70. Kg3 {[%emt 0:00:19]} Ke5 {[%emt 0:00:24]} 71. Kh4 {[%emt 0:00:21]} Kf6 {[%emt 0:00:18]} 72. Kg3 {[%emt 0:00:06]} Ra4 {[%emt 0:00:13]} 73. Rf8+ {[%emt 0:00:44]} Kg7 {[%emt 0:00:20]} 74. Ra8 {[%emt 0:00:06]} Kf7 {[%emt 0:00:29]} 75. Kh3 {[%emt 0:01:00]} Ra3+ {[%emt 0:00:20]} 76. Kh4 {[%emt 0:00:26]} Kf6 {[%emt 0:00:34]} 77. Rf8+ {[%emt 0:00:12]} Kg7 {[%emt 0:00:21]} 78. Ra8 {[%emt 0:00:04]} Ne5 {[%emt 0:00:18]} 79. Kg5 {[%emt 0:01:55]} Nc6 {[%emt 0:00:26]} 80. Kf5 {[%emt 0:00:28]} Kf7 {[%emt 0:00:18]} 81. g5 {[%emt 0:00:33]} Ra5+ {[%emt 0:00:27]} 82. Kf4 {[%emt 0:00:15]} Nb4 {[%emt 0:01:17]} 83. Kg4 {[%emt 0:01:14]} Ra4 {[%emt 0:00:53]} 84. Kh5 {[%emt 0:00:20]} Nd5 {[%emt 0:00:59]} 85. Ra7+ {[%emt 0:00:28]} Ne7 {[%emt 0:00:32]} 86. g6+ {[%emt 0:00:32]} Kf6 {[%emt 0:00:04]} 87. g7 $1 {[%emt 0:00:20]} Ng8 {[%emt 0:00:34]} 88. Ra8 {[%emt 0:00:51]} Kxg7 {[%emt 0:00:16]} 89. Kg5 {[%emt 0:00:11]} Ne7 {[%emt 0:00:08]} 90. a7 {[%emt 0:01:03]} Kf7 {[%emt 0:00:04]} 91. Kh5 {[%emt 0:00:41]} Ke6 {[%emt 0:01:13]} 92. Kg5 {[%emt 0:00:15]} Kd7 {[%emt 0:00:11]} 93. Kf6 {[%emt 0:00:40]} Ra5 {[%emt 0:01:06]} 94. Kg7 {[%emt 0:00:38]} Ke6 {[%emt 0:00:20]} 95. Rb8 {[%emt 0:00:26]} Rxa7 {[%emt 0:00:39]} 96. Rb6+ {[%emt 0:00:10]} Ke5 {[%emt 0:00:35]} 97. Rb5+ {[%emt 0:00:36]} Nd5+ {[%emt 0:00:01]} 98. Kg6 {[%emt 0:00:11]} Ra6+ {[%emt 0:00:19]} 99. Kg5 {[%emt 0:00:21]} Ra1 {[%emt 0:00:11]} 100. Kg4 {[%emt 0:00:31]} Ke4 {[%emt 0:00:04]} 101. Kg3 {[%emt 0:00:12]} Rf1 {[%emt 0:00:49]} (101... Nc3 $5 {[%cal Rc3b5]} 102. Rb7 Ne2+ 103. Kg4 Rg1+ 104. Kh4 Nc3 $15) 102. Rb3 {[%emt 0:00:42]} Rf7 {[%emt 0:00:52]} 103. Ra3 {[%emt 0:00:13]} Ke5 {[%emt 0:00:36]} 104. Ra5 {[%emt 0:00:32]} Rb7 {[%emt 0:00:10]} 105. Ra3 {[%emt 0:00:34]} Rb4 {[%emt 0:00:10]} 106. Ra8 {[%emt 0:00:34]} Rb3+ {[%emt 0:00:11]} 107. Kf2 {[%emt 0:00:09]} Ne3 {[%emt 0:01:15]} 108. Re8+ {[%emt 0:00:27]} Kf4 {[%emt 0:00:01]} 109. Rf8+ {[%emt 0:00:22]} Nf5 {[%emt 0:00:02]} 110. Ke2 {[%emt 0:00:09]} Ke4 {[%emt 0:00:18]} 111. Re8+ {[%emt 0:00:07]} Kd5 {[%emt 0:00:03]} 112. Rd8+ {[%emt 0:00:07]} Nd6 {[%emt 0:00:03]} 113. Kf2 {[%emt 0:00:17]} Ke5 {[%emt 0:00:57]} 114. Ke2 {[%emt 0:00:23]} Nc4 {[%emt 0:00:08]} 115. Re8+ {[%emt 0:00:07]} Kd4 {[%emt 0:00:03]} 116. Rd8+ {[%emt 0:00:10]} Ke4 {[%emt 0:00:00]} 117. Re8+ {[%emt 0:00:14]} Ne5 {[%emt 0:00:01]} 118. Kd2 {[%emt 0:00:41]} Ra3 {[%emt 0:01:03]} 119. Kc2 {[%emt 0:00:15]} Kd4 {[%emt 0:01:52]} 120. Rd8+ {[%emt 0:00:13]} Kc5 {[%emt 0:01:53]} 121. Rc8+ {[%emt 0:00:16]} Nc6 {[%emt 0:00:01]} 122. Kd2 {[%emt 0:00:31]} Kd5 {[%emt 0:00:23]} 123. Rh8 {[%emt 0:00:21]} Rg3 {[%emt 0:00:10]} 124. Rf8 {[%emt 0:01:05]} Rh3 {[%emt 0:00:36]} 125. Rg8 {[%emt 0:00:11]} Ke4 {[%emt 0:00:30]} 126. Re8+ {[%emt 0:00:18]} Kd4 {[%emt 0:00:04]} 127. Ke2 {[%emt 0:00:51]} Ra3 {[%emt 0:00:42]} 128. Kf2 {[%emt 0:01:42]} Ne5 {[%emt 0:00:40]} 129. Rd8+ {[%emt 0:00:26]} Ke4 {[%emt 0:00:01]} 130. Re8 {[%emt 0:00:09]} Ra2+ {[%emt 0:00:22]} 131. Kg3 {[%emt 0:00:16]} Rb2 {[%emt 0:00:14]} 132. Ra8 {[%emt 0:01:44]} Rb3+ {[%emt 0:01:07]} 133. Kg2 {[%emt 0:00:24]} Ng4 {[%emt 0:00:56]} 134. Ra4+ {[%emt 0:01:14]} Kf5 {[%emt 0:00:01]} 135. Ra5+ {[%emt 0:00:18]} Kf4 {[%emt 0:00:01]} 136. Ra4+ {[%emt 0:00:12]} Kg5 {[%emt 0:00:01]} 137. Ra8 $1 {[%emt 0:00:17]} Nf6 {[%emt 0:00:34]} 138. Ra6 {[%emt 0:00:53]} Ne4 {[%emt 0:00:27]} 139. Ra8 {[%emt 0:01:24]} Rg3+ {[%emt 0:00:06]} 140. Kf1 {[%emt 0:00:19]} Kf4 {[%emt 0:00:02]} 141. Ke2 {[%emt 0:00:10]} Rg2+ {[%emt 0:00:05]} 142. Kd3 {[%emt 0:00:23]} Rd2+ {[%emt 0:00:12]} 143. Kc4 {[%emt 0:00:02]} Rd7 {[%emt 0:00:10]} 144. Rf8+ {[%emt 0:00:09]} Ke3 {[%emt 0:00:15]} 145. Re8 {[%emt 0:00:11]} Rc7+ {[%emt 0:00:11]} 1/2-1/2

[Event "Teplice Open 2022"]
[Site "Teplice"]
[Date "2022.06.20"]
[Round "3.17"]
[White "Sankalp Gupta"]
[Black "Nytra, Ondrej"]
[Result "1-0"]
[WhiteElo "2505"]
[BlackElo "2219"]
[Annotator "TA"]
[PlyCount "36"]
[EventDate "2022.06.18"]
[EventType "swiss"]
[EventCountry "CZE"]
[SourceTitle "playchess.com"]
[Source "ChessBase"]
[SourceQuality "1"]
[TimeControl "40/5400+30:1800+30"]

{[%evp 17,18,27,51]} 1. e4 {[%emt 0:01:43]} e5 {[%emt 0:00:05]} 2. Nf3 {[%emt 0:00:07]} Nc6 {[%emt 0:00:04]} 3. Bb5 {[%emt 0:00:06]} a6 {[%emt 0:00:04]} 4. Ba4 {[%emt 0:00:05]} Nf6 {[%emt 0:00:06]} 5. O-O {[%emt 0:00:06]} Be7 {[%emt 0:00:17]} 6. Re1 {[%emt 0:00:03]} b5 {[%emt 0:00:14]} 7. Bb3 {[%emt 0:00:02]} d6 {[%emt 0:00:08]} 8. c3 {[%emt 0:00:04]} O-O {[%emt 0:00:03]} 9. h3 {[%emt 0:00:04]} a5 {[%emt 0:00:37] [#]} {Predecessor:} 10. d4 $146 {C92: Closed Ruy Lopez: 9...Be6, Karpov and Flohr-Zaitsev Variations.} Bd7 11. d5 a4 12. dxc6 axb3 13. cxd7 Rxa2 14. Qxb3 Rxa1 15. Na3 Qxd7 16. Qc2 Ra8 17. Nd2 Qc6 18. Nb3 Ra2 {0-1 (27) Harvey,M (2454)-Matlakov,M (2671) Chess.com INT 2022} 1-0

[Event "Teplice Open 2022"]
[Site "Teplice"]
[Date "2022.06.20"]
[Round "3.18"]
[White "Delgerdalai, Bayarjavkhlan"]
[Black "Yilmazyerli, Mert"]
[Result "0-1"]
[ECO "B90"]
[WhiteElo "2119"]
[BlackElo "2502"]
[Annotator "TA"]
[PlyCount "82"]
[EventDate "2022.06.18"]
[EventType "swiss"]
[EventCountry "CZE"]
[SourceTitle "playchess.com"]
[Source "ChessBase"]
[SourceQuality "1"]
[TimeControl "40/5400+30:1800+30"]

{[%evp 19,82,14,0,0,0,0,0,0,0,0,0,0,0,0,27,32,15,-61,0,6,101,-6,9,6,56,-64,-68,-114,-103,-123,-124,-109,-108,-117,-119,-112,-80,-77,-73,-120,-116,-93,-99,-136,-140,-131,-126,-125,-129,-144,-148,-407,-423,-431,-404,-545,-405,-662,-661,-651,-633,-901,-897,-867,-829]} 1. e4 {[%emt 0:04:14]} c5 {[%emt 0:04:19]} 2. Nf3 {[%emt 0:00:00]} d6 {[%emt 0:00:05]} 3. d4 {[%emt 0:00:00]} cxd4 {[%emt 0:02:33]} 4. Nxd4 {[%emt 0:00:00]} Nf6 {[%emt 0:00:03]} 5. Nc3 {[%emt 0:00:00]} a6 {[%emt 0:00:05]} 6. f3 {[%emt 0:00:00]} e5 {[%emt 0:02:06]} 7. Nb3 {[%emt 0:00:00]} Be6 {[%emt 0:01:18]} 8. Be3 {[%emt 0:00:00]} Be7 {[%emt 0:00:31]} 9. Qd2 {[%emt 0:00:00]} h5 {[%emt 0:00:29]} 10. O-O-O {[%emt 0:00:00]} Nbd7 {[%emt 0:00:18]} 11. Nd5 {[%emt 0:14:09] B90: Sicilian Najdorf: Unusual White 6th moves, 6 Be3 Ng4 and 6 Be3 e5.} Nxd5 {[%emt 0:01:10] 11...Nxd5 scores better than 11...Bxd5.} 12. exd5 {[%emt 0:00:10]} Bf5 {[%emt 0:00:04]} 13. Bd3 {[%emt 0:03:02] The position is equal.} Bxd3 {[%emt 0:00:19]} 14. Qxd3 {[%emt 0:04:40]} Bg5 {[%emt 0:00:51]} 15. Kb1 {[%emt 0:03:09]} Bxe3 {[%emt 0:07:31]} 16. Qxe3 {[%emt 0:00:02]} O-O {[%emt 0:05:35][%cal Bh8f8,Bf8c8,Bc8c4,Bc4f4,Bf4f3][%mdl 32]} 17. g4 {[%emt 0:08:34]} hxg4 {[%emt 0:06:49] [#]} 18. Rhg1 $146 {[%emt 0:04:38]} (18. fxg4 $11 Rc8 19. h3) ({Predecessor:} 18. fxg4 Rc8 19. Nd2 Qc7 20. c3 Nc5 21. h4 f5 22. gxf5 Rxf5 23. Rhg1 Rcf8 24. Rg3 R8f7 25. Rdg1 a5 26. Qe2 Kf8 27. h5 R5f6 28. Qb5 a4 29. a3 {½-½ (29) Arppi,H (2288)-Fagerstrom,M (2273) ICCF email 2017}) 18... Qb6 {[%emt 0:10:41]} (18... f5 $15) 19. Qg5 {[%emt 0:11:40]} Nf6 {[%emt 0:03:42] [#]} (19... f5 $11) 20. h4 {[%emt 0:10:36]} (20. Nd4 $1 $16 {[%cal Rd4f5][%mdl 512] And now Nf5 would win.} Nh7 (20... exd4 21. Qxf6) 21. Qxg4) 20... Rfc8 {[%emt 0:05:42]} 21. h5 $1 {[%emt 0:17:41]} Qd8 {[%emt 0:01:00]} (21... Qf2 $11 22. Nd2 Qh2) 22. fxg4 {[%emt 0:01:36]} (22. Nd2 $1 $14) 22... Rc4 $1 $15 {[%emt 0:04:54]} 23. Rg2 {[%emt 0:10:52]} (23. h6 $15 g6 24. h7+ Nxh7 25. Qh6) 23... Rf4 $17 {[%emt 0:03:57]} 24. Nc1 {[%emt 0:02:01]} Ne4 {[%emt 0:23:10]} 25. Qxd8+ {[%emt 0:00:22]} Rxd8 {[%emt 0:00:02]} 26. Nd3 {[%emt 0:00:55]} Rf3 {[%emt 0:01:10]} 27. g5 {[%emt 0:01:28]} Rf5 {[%emt 0:01:35]} 28. Rdg1 {[%emt 0:01:01]} Rc8 {[%emt 0:00:12]} 29. Rg4 {[%emt 0:00:49]} ({White should try} 29. c3) 29... Nd2+ {[%emt 0:03:41]} 30. Kc1 {[%emt 0:00:02]} Nc4 {[%emt 0:01:18] White must now prevent ...Ne3. Black is more active.} 31. Re4 {[%emt 0:01:22] Against Ne3} Nb6 {[%emt 0:02:56]} 32. Rb4 {[%emt 0:00:58]} Nxd5 {[%emt 0:00:02]} 33. Rxb7 {[%emt 0:00:07]} e4 $36 {[%emt 0:00:02][%mdl 2048] White is under strong pressure.} 34. Nb4 {[%emt 0:00:27] [#]} Nf4 {[%emt 0:00:02] Threatens to win with ...Ne2+.} 35. Re1 {[%emt 0:02:46][%mdl 8192] Prevents Ne2+. Now White is beyond hope.} (35. Kd2 $17) 35... a5 $19 {[%emt 0:00:34]} 36. Rxe4 {[%emt 0:00:37]} axb4 {[%emt 0:00:04]} 37. g6 {[%emt 0:00:24]} fxg6 {[%emt 0:00:45]} 38. hxg6 {[%emt 0:00:17]} (38. Ree7 $142 Rxh5 39. Rxg7+ Kh8 40. Rgc7 Rh1+ 41. Kd2 Rh2+ 42. Kc1) 38... Nd3+ {[%emt 0:00:25] Black is clearly winning.} 39. Kd2 {[%emt 0:00:02]} Nc5 {[%emt 0:00:10]} 40. Rc4 {[%emt 0:00:05]} Rd5+ {[%emt 0:00:31]} 41. Kc1 {[%emt 0:30:11]} Re8 {[%emt 0:30:20] Weighted Error Value: White=0.53/Black=0.16 (very precise)} 0-1

[Event "Teplice Open 2022"]
[Site "Teplice"]
[Date "2022.06.20"]
[Round "3.19"]
[White "Kratochvil, Karel"]
[Black "Kraus, Tomas"]
[Result "0-1"]
[ECO "D37"]
[WhiteElo "2140"]
[BlackElo "2472"]
[Annotator "TA"]
[PlyCount "54"]
[EventDate "2022.06.18"]
[EventType "swiss"]
[EventCountry "CZE"]
[SourceTitle "playchess.com"]
[Source "ChessBase"]
[SourceQuality "1"]
[TimeControl "40/5400+30:1800+30"]

{[%evp 11,54,-8,-2,0,0,-29,-34,-46,-37,-26,0,0,0,10,18,3,18,-10,0,-10,-9,-9,0,-64,-27,-94,-22,-125,-35,-45,-13,-24,0,-226,-207,-216,-194,-259,-265,-466,-245,-852,-852,-861,-843]} 1. d4 {[%emt 0:00:06]} d5 {[%emt 0:00:35]} 2. c4 {[%emt 0:00:25]} e6 {[%emt 0:00:20]} 3. Nc3 {[%emt 0:00:08]} a6 {[%emt 0:00:27]} 4. e3 {[%emt 0:03:25]} Nf6 {[%emt 0:00:30]} 5. Nf3 {[%emt 0:00:20]} Nbd7 {[%emt 0:00:35]} 6. cxd5 {[%emt 0:01:01]} exd5 {[%emt 0:01:35]} 7. Bd3 {[%emt 0:00:45] D37: Queen's Gambit Declined: 5 Bf4.} Bd6 {[%emt 0:03:18]} 8. g4 {[%emt 0:03:41]} h6 {[%emt 0:04:21]} 9. Rg1 {[%emt 0:03:06] [#] Black is slightly better.} Nf8 $146 {[%emt 0:11:35]} ({Predecessor:} 9... c6 10. Qe2 Qe7 11. Bd2 Ne4 12. O-O-O Ndf6 13. Ne5 Nxd2 14. Rxd2 Bxe5 15. dxe5 Qxe5 {0-1 (41) Haznedaroglu,K (2494)-Dreev,A (2662) Gjakova 2016}) 10. Ne5 {[%emt 0:11:17]} c6 {[%emt 0:12:01]} 11. f4 {[%emt 0:03:54]} N6d7 {[%emt 0:03:57]} 12. Qf3 {[%emt 0:04:56]} Nxe5 {[%emt 0:03:23]} 13. dxe5 {[%emt 0:01:51]} Qh4+ {[%emt 0:04:23]} 14. Kd1 {[%emt 0:04:53][%cal Be1d1,Bd1c2,Bc2b1][%mdl 32]} Bc7 {[%emt 0:07:13]} 15. Kc2 {[%emt 0:04:10]} Ne6 {[%emt 0:02:29]} 16. Bd2 {[%emt 0:02:26]} Bd7 {[%emt 0:01:34]} (16... Qxh2 $2 17. Rh1 Qxf4 18. Qxf4 Nxf4 19. exf4 $18) 17. b4 {[%emt 0:07:16]} (17. Rad1 $11) 17... Rd8 {[%emt 0:05:33]} (17... Qxh2 $2 18. Rh1 Qxf4 19. Qxf4 Nxf4 20. exf4 $18) 18. Raf1 {[%emt 0:06:28] [#]} (18. a3 $11) 18... Qe7 {[%emt 0:01:46]} (18... Qxh2 $2 19. Rh1 Qxf4 20. exf4 $18) (18... a5 $1 $17 {[%cal Ra5b4]} 19. b5 (19. f5 Ng5 $17) 19... Qe7) 19. Ne2 {[%emt 0:02:20] [#]} (19. a3 $11 {remains equal.}) 19... c5 {[%emt 0:01:25]} ({Black should play} 19... a5 $1 $17 {[%cal Ra5b4]} 20. a3 c5) 20. Kb1 $1 $15 {[%emt 0:09:56]} Bc6 {[%emt 0:02:36] And now ...c4 would win.} (20... a5 $5 21. bxa5 (21. Qxd5 $2 Ba4 $19) 21... c4 $17) 21. Qf2 {[%emt 0:02:50]} d4 {[%emt 0:06:57]} 22. f5 $2 {[%emt 0:03:59]} (22. exd4 $11 Nxd4 23. Nxd4 Rxd4 24. Bc2) 22... dxe3 $19 {[%emt 0:03:06]} 23. Qxe3 {[%emt 0:00:42]} Ng5 {[%emt 0:01:26][%cal Od8d3,Be6g5,Bg5e4,Be4g3][%mdl 32] ...Rxd3! is the strong threat.} 24. f6 {[%emt 0:05:39]} (24. Nc1 $142) 24... gxf6 {[%emt 0:01:57][%cal Od8d3] Strongly threatening ...Rxd3!} 25. Ng3 $2 {[%emt 0:02:37]} (25. Bc2) 25... Qxe5 {[%emt 0:03:23]} (25... Qd7 $142 26. exf6+ Ne6) 26. Bc4 {[%emt 0:01:14]} (26. Bc2) 26... Ne4 {[%emt 0:04:02]} 27. Bc1 {[%emt 0:01:39]} Nxg3 {[%emt 0:00:39] Weighted Error Value: White=0.75/Black=0.28 (precise)} 0-1